[Event "Summer Prague Open A 2020"]
[Site "Prague"]
[Date "2020.08.10"]
[Round "4.10"]
[White "Mukashev, Assan"]
[Black "Vokac, Marek"]
[Result "0-1"]
[ECO "A40"]
[WhiteElo "2207"]
[BlackElo "2362"]
[Annotator "ChessBase"]
[PlyCount "70"]
[EventDate "2020.08.08"]
[EventCountry "CZE"]
[SourceTitle "playchess.com"]
[Source "ChessBase"]
[SourceQuality "1"]
[TimeControl "40/5400+30:1800+30"]

1. d4 g6 2. c4 Bg7 3. Nc3 c5 4. e3 Nf6 5. d5 e6 6. Be2 O-O 7. h4 exd5 8. cxd5 d6 9. h5 Qe7 10. hxg6 fxg6 11. Nh3 Bxh3 12. Rxh3 Nbd7 13. Kf1 a6 14. a4 Rae8 15. Kg1 Ne4 16. Nxe4 Qxe4 17. Bg4 Ne5 18. Be6+ Kh8 19. f3 Qd3 20. Qe1 Qc2 21. e4 h5 22. Qg3 Nxf3+ 23. gxf3 Bd4+ 24. Kh1 Qd1+ 25. Kh2 Rxf3 26. Be3 Qe2+ 27. Qg2 Rxh3+ 28. Kxh3 Qxe3+ 29. Kh2 Rf8 30. Rf1 Be5+ 31. Kh1 Rxf1+ 32. Qxf1 Qxe4+ 33. Kg1 Qd4+ 34. Kg2 Qxb2+ 35. Kh1 Qh2# 0-1

[Event "Summer Prague Open A 2020"]
[Site "Prague"]
[Date "2020.08.10"]
[Round "4.11"]
[White "Malassagne, Raphael"]
[Black "Haack, Kevin"]
[Result "1/2-1/2"]
[ECO "D00"]
[WhiteElo "2305"]
[BlackElo "2180"]
[Annotator "ChessBase"]
[PlyCount "59"]
[EventDate "2020.08.08"]
[EventCountry "CZE"]
[SourceTitle "playchess.com"]
[Source "ChessBase"]
[SourceQuality "1"]
[TimeControl "40/5400+30:1800+30"]

1. d4 d5 2. Bf4 Nf6 3. e3 e6 4. Nd2 Bd6 5. Bg3 O-O 6. Ngf3 c5 7. c3 Qc7 8. dxc5 Bxg3 9. hxg3 Qxc5 10. Bd3 h6 11. Qa4 Nc6 12. g4 e5 13. g5 Ng4 14. gxh6 Nxh6 15. Rh5 f5 16. Bb5 Ng4 17. Nb3 Qd6 18. O-O-O e4 19. Rxd5 Qg6 20. Bc4 Be6 21. Rg5 Qh6 22. Rd7 exf3 23. Rgxg7+ Kh8 24. Rh7+ Qxh7 25. Rxh7+ Kxh7 26. gxf3 Bxc4 27. Qxc4 Nce5 28. Qb5 Nxf2 29. Qxb7+ Kg6 30. Qa6+ 1/2-1/2

[Event "Summer Prague Open A 2020"]
[Site "Prague"]
[Date "2020.08.10"]
[Round "4.12"]
[White "Mladek, Richard"]
[Black "Ludvik, Tomas"]
[Result "1-0"]
[ECO "D45"]
[WhiteElo "2280"]
[BlackElo "2202"]
[Annotator "ChessBase"]
[PlyCount "109"]
[EventDate "2020.08.08"]
[EventCountry "CZE"]
[SourceTitle "playchess.com"]
[Source "ChessBase"]
[SourceQuality "1"]
[TimeControl "40/5400+30:1800+30"]

1. d4 d5 2. c4 c6 3. Nf3 Nf6 4. e3 e6 5. Nc3 Nbd7 6. Qc2 Bd6 7. g4 h6 8. Rg1 b5 {[%emt 0:02:29]} 9. cxb5 {[%emt 0:04:37]} c5 10. e4 {[%emt 0:07:53]} cxd4 {[%emt 0:08:59]} 11. Nxd4 {[%emt 0:00:09]} Bb7 {[%emt 0:08:13]} 12. Nc6 {[%emt 0:10:57]} Bxc6 {[%emt 0:12:03]} 13. bxc6 {[%emt 0:00:02]} Ne5 {[%emt 0:00:32]} 14. Be2 {[%emt 0:01:27]} d4 {[%emt 0:08:21]} 15. Qa4 {[%emt 0:00:17]} Bc7 {[%emt 0:01:08]} 16. Bf4 {[%emt 0:07:24]} dxc3 {[%emt 0:04:10]} 17. Bxe5 {[%emt 0:27:53]} Qd2+ {[%emt 0:01:21]} 18. Kf1 {[%emt 0:00:01]} Bxe5 {[%emt 0:00:14]} 19. Rd1 {[%emt 0:04:13]} Qxb2 {[%emt 0:02:42]} 20. c7+ {[%emt 0:00:41]} Ke7 {[%emt 0:00:36]} 21. Qa5 {[%emt 0:02:04]} Nxg4 {[%emt 0:21:32]} 22. Rxg4 {[%emt 0:03:06]} c2 {[%emt 0:00:16]} 23. Qc5+ {[%emt 0:02:00]} Kf6 {[%emt 0:00:08]} 24. Re1 {[%emt 0:00:23]} g5 {[%emt 0:04:46]} 25. Rg3 {[%emt 0:04:54]} Rac8 {[%emt 0:06:15]} 26. Rb3 {[%emt 0:03:45]} Qd4 {[%emt 0:02:26]} 27. Rf3+ {[%emt 0:04:47]} Kg6 {[%emt 0:00:36]} 28. Qe7 {[%emt 0:03:20]} Bf6 {[%emt 0:06:46]} 29. Rxf6+ {[%emt 0:00:05]} Qxf6 {[%emt 0:00:10]} 30. Qc5 {[%emt 0:01:51]} Qf4 {[%emt 0:02:17]} 31. e5 {[%emt 0:00:05]} Qxh2 {[%emt 0:03:24]} 32. Qxc2+ {[%emt 0:01:10]} Kg7 {[%emt 0:00:04]} 33. Ba6 {[%emt 0:00:15]} Qh1+ {[%emt 0:02:23]} 34. Ke2 {[%emt 0:00:02]} Qd5 {[%emt 0:00:30]} 35. Kf1 {[%emt 0:04:49]} Qa5 {[%emt 0:02:17]} 36. Bxc8 {[%emt 0:00:37]} Rxc8 {[%emt 0:00:02]} 37. Rc1 {[%emt 0:00:14]} Qxe5 {[%emt 0:01:00]} 38. Qc6 {[%emt 0:00:35]} Qd5 {[%emt 0:00:58]} 39. Qa6 {[%emt 0:00:18]} Qd7 {[%emt 0:02:17]} 40. Qxa7 {[%emt 0:00:36]} h5 {[%emt 0:00:31]} 41. Qb7 {[%emt 0:37:59]} e5 {[%emt 0:08:38]} 42. a4 {[%emt 0:00:00]} f6 {[%emt 0:06:17]} 43. a5 {[%emt 0:00:00]} Qh3+ {[%emt 0:01:38]} 44. Ke2 {[%emt 0:00:00]} Qg4+ {[%emt 0:00:38]} 45. Qf3 {[%emt 0:00:00]} Qe6 {[%emt 0:04:32]} 46. Qc6 {[%emt 0:00:00]} Qg4+ {[%emt 0:01:48]} 47. Kf1 {[%emt 0:00:00]} Qh3+ {[%emt 0:00:35]} 48. Ke1 {[%emt 0:00:00]} Qg4 {[%emt 0:02:11]} 49. a6 {[%emt 0:00:00]} Qg1+ {[%emt 0:00:32]} 50. Ke2 {[%emt 0:00:00]} Qg4+ {[%emt 0:00:16]} 51. Qf3 {[%emt 0:00:00]} Qa4 {[%emt 0:01:37]} 52. Qc6 {[%emt 0:00:00]} Qg4+ {[%emt 0:00:12]} 53. Kf1 {[%emt 0:00:00]} Qh3+ {[%emt 0:07:06]} 54. Ke1 {[%emt 0:00:00]} Qa3 {[%emt 0:00:24]} 55. a7 {[%emt 0:00:00]} 1-0

[Event "Summer Prague Open A 2020"]
[Site "Prague"]
[Date "2020.08.10"]
[Round "4.13"]
[White "Richter, Philipp"]
[Black "Csiki, Endre"]
[Result "1/2-1/2"]
[ECO "A50"]
[WhiteElo "2127"]
[BlackElo "2266"]
[Annotator "ChessBase"]
[PlyCount "89"]
[EventDate "2020.08.08"]
[EventCountry "CZE"]
[SourceTitle "playchess.com"]
[Source "ChessBase"]
[SourceQuality "1"]
[TimeControl "40/5400+30:1800+30"]

1. d4 Nf6 2. c4 g6 3. f3 Nc6 4. d5 Ne5 5. e4 d6 6. f4 Ned7 7. Nc3 Bg7 8. Nh3 O-O 9. Be2 Nc5 10. Nf2 c6 11. Be3 cxd5 12. cxd5 e6 13. e5 Nxd5 14. Nxd5 exd5 15. Qxd5 Be6 16. Qd2 Na4 17. Rd1 Nb6 18. Qxd6 Qxd6 19. Rxd6 Rfc8 20. Bxb6 axb6 21. a3 Rc2 22. Rd2 Rac8 23. Bd3 Rc1+ 24. Rd1 Bb3 25. Rxc1 Rxc1+ 26. Ke2 Rxh1 27. Nxh1 f6 28. f5 Bd5 29. Ng3 fxe5 30. fxg6 hxg6 31. Be4 Bxe4 32. Nxe4 Kf7 33. Kd3 Ke6 34. g4 Bh6 35. a4 Kd5 36. b4 Ke6 37. Kc4 Be3 38. Kd3 Bh6 39. Kc4 Be3 40. h4 Bf4 41. Kd3 Bh6 42. Nc3 Bf8 43. Kc4 Be7 44. Kb5 Bxh4 45. Kc4 1/2-1/2

[Event "Summer Prague Open A 2020"]
[Site "Prague"]
[Date "2020.08.10"]
[Round "4.17"]
[White "Deuer, Marius"]
[Black "Buchenau, Frank"]
[Result "0-1"]
[ECO "E16"]
[WhiteElo "2122"]
[BlackElo "2278"]
[Annotator "ChessBase"]
[PlyCount "52"]
[EventDate "2020.08.08"]
[EventCountry "CZE"]
[SourceTitle "playchess.com"]
[Source "ChessBase"]
[SourceQuality "1"]
[TimeControl "40/5400+30:1800+30"]

1. d4 e6 2. c4 Nf6 3. Nf3 Bb4+ 4. Bd2 Qe7 5. g3 Nc6 6. Bg2 Bxd2+ 7. Nbxd2 {[%emt 0:02:29]} d6 {[%emt 0:01:16]} 8. O-O {[%emt 0:02:34]} O-O {[%emt 0:00:53]} 9. e4 {[%emt 0:07:47]} e5 {[%emt 0:02:10]} 10. d5 {[%emt 0:01:02]} Nb8 {[%emt 0:00:10]} 11. Ne1 {[%emt 0:06:18]} a5 {[%emt 0:03:24]} 12. Nd3 {[%emt 0:07:40]} Na6 {[%emt 0:09:17]} 13. f4 {[%emt 0:03:14]} Bd7 {[%emt 0:08:24]} 14. Qe2 {[%emt 0:11:36]} c6 {[%emt 0:03:34]} 15. c5 {[%emt 0:18:58]} Nxc5 {[%emt 0:06:09]} 16. Nxc5 {[%emt 0:01:12]} dxc5 {[%emt 0:00:10]} 17. Nc4 {[%emt 0:00:16]} cxd5 {[%emt 0:08:03]} 18. exd5 {[%emt 0:06:28]} e4 {[%emt 0:01:13]} 19. Ne5 {[%emt 0:08:38]} Rad8 {[%emt 0:16:20]} 20. Rae1 {[%emt 0:07:08]} Qd6 {[%emt 0:05:31]} 21. Rd1 {[%emt 0:05:12]} Rfe8 {[%emt 0:02:38]} 22. Bxe4 {[%emt 0:01:42]} Nxe4 {[%emt 0:05:34]} 23. Qxe4 {[%emt 0:00:15]} Bh3 {[%emt 0:07:31]} 24. Qf3 {[%emt 0:03:50]} Bxf1 {[%emt 0:02:42]} 25. Kxf1 {[%emt 0:00:01]} Qa6+ {[%emt 0:01:42]} 26. Qd3 {[%emt 0:03:19]} Rxd5 {[%emt 0:01:29]} 0-1

[Event "Summer Prague Open A 2020"]
[Site "Prague"]
[Date "2020.08.10"]
[Round "4.19"]
[White "Kozak, Milos"]
[Black "Serrano Salvador, Eduardo"]
[Result "1-0"]
[ECO "E09"]
[WhiteElo "2174"]
[BlackElo "2299"]
[Annotator "ChessBase"]
[PlyCount "115"]
[EventDate "2020.08.08"]
[EventCountry "CZE"]
[SourceTitle "playchess.com"]
[Source "ChessBase"]
[SourceQuality "1"]
[TimeControl "40/5400+30:1800+30"]

1. d4 Nf6 2. c4 e6 3. g3 d5 4. Nf3 c6 5. Bg2 Nbd7 6. O-O Be7 7. Qc2 O-O 8. Nbd2 b6 9. e4 Bb7 10. e5 Ne8 11. cxd5 cxd5 12. Re1 Rc8 13. Qd1 Nc7 14. Nf1 Na6 15. a3 b5 16. Qb3 Qb6 17. Be3 Rc7 18. Rec1 Rfc8 19. Rxc7 Rxc7 20. N1d2 b4 21. axb4 Nxb4 22. Ne1 Ba6 23. h4 h6 24. Kh2 Be2 25. Qa4 Qb5 26. Qxb5 Bxb5 27. Bf3 Nb6 28. b3 a6 29. Bd1 Nd3 30. Nxd3 Bxd3 31. Nf3 Nd7 32. Ne1 Bb5 33. Bd2 Nb8 34. Rc1 Rxc1 35. Bxc1 Bb4 36. Nf3 Bc3 37. Ba3 Nc6 38. Bc5 Bd3 39. g4 Be4 40. Kg3 Bxf3 41. Kxf3 Bxd4 42. Bxd4 Nxd4+ 43. Ke3 Nc6 44. f4 Kf8 45. Be2 Na5 46. Bd1 Ke7 47. Kd4 Kd7 48. Kc5 Kc7 49. h5 Nb7+ 50. Kd4 a5 51. f5 Kc6 52. f6 gxf6 53. exf6 Kd6 54. g5 e5+ 55. Ke3 d4+ 56. Ke4 Nc5+ 57. Kf5 Ne6 58. g6 1-0

[Event "Summer Prague Open A 2020"]
[Site "Prague"]
[Date "2020.08.11"]
[Round "5.2"]
[White "Svanda, Ondrej"]
[Black "Plat, Vojtech"]
[Result "1/2-1/2"]
[ECO "A10"]
[WhiteElo "2238"]
[BlackElo "2562"]
[Annotator "ChessBase"]
[PlyCount "133"]
[EventDate "2020.08.08"]
[EventCountry "CZE"]
[SourceTitle "playchess.com"]
[Source "ChessBase"]
[SourceQuality "1"]
[TimeControl "40/5400+30:1800+30"]

1. c4 {[%emt 0:00:00]} g6 {[%emt 0:10:14]} 2. g3 {[%emt 0:00:00]} Bg7 {[%emt 0:00:07]} 3. Bg2 {[%emt 0:00:00]} e5 {[%emt 0:00:10]} 4. Nc3 {[%emt 0:00:02]} Ne7 {[%emt 0:00:05]} 5. e4 {[%emt 0:07:02]} O-O {[%emt 0:00:21]} 6. Nge2 {[%emt 0:00:05]} c6 {[%emt 0:00:14]} 7. d4 {[%emt 0:02:44]} exd4 {[%emt 0:00:06]} 8. Nxd4 {[%emt 0:00:06]} d6 {[%emt 0:01:16]} 9. O-O {[%emt 0:02:16]} Nd7 {[%emt 0:00:04]} 10. h3 {[%emt 0:07:10]} Nb6 {[%emt 0:06:49]} 11. b3 {[%emt 0:15:29]} a5 {[%emt 0:01:51]} 12. Bb2 {[%emt 0:01:35]} a4 {[%emt 0:00:09]} 13. Rc1 {[%emt 0:00:06]} axb3 {[%emt 0:00:33]} 14. axb3 {[%emt 0:00:06]} Nd7 {[%emt 0:00:22]} 15. Ra1 {[%emt 0:05:32]} Rxa1 {[%emt 0:00:52]} 16. Bxa1 {[%emt 0:00:01]} Nc5 {[%emt 0:02:25]} 17. Nce2 {[%emt 0:07:18]} Re8 {[%emt 0:07:27]} 18. Bc3 {[%emt 0:09:16]} f5 {[%emt 0:14:23]} 19. exf5 {[%emt 0:00:36]} Nxf5 {[%emt 0:00:11]} 20. Nxf5 {[%emt 0:15:27]} Bxf5 {[%emt 0:00:04]} 21. Bxg7 {[%emt 0:00:35]} Kxg7 {[%emt 0:00:03]} 22. b4 {[%emt 0:02:33]} Ne4 {[%emt 0:06:20]} 23. g4 {[%emt 0:03:32]} Bc8 {[%emt 0:00:04]} 24. Qd4+ {[%emt 0:06:33]} Qf6 {[%emt 0:00:04]} 25. Qxf6+ {[%emt 0:05:48]} Nxf6 {[%emt 0:00:30]} 26. Ng3 {[%emt 0:01:29]} Be6 {[%emt 0:00:26]} 27. Rc1 {[%emt 0:00:28]} Re7 {[%emt 0:03:14]} 28. b5 {[%emt 0:00:46]} c5 {[%emt 0:00:09]} 29. f4 {[%emt 0:02:41]} h6 {[%emt 0:01:40]} 30. Kf2 {[%emt 0:00:49]} b6 {[%emt 0:00:16]} 31. Rd1 {[%emt 0:00:51]} Rd7 {[%emt 0:01:23]} 32. Bf1 {[%emt 0:02:53]} d5 {[%emt 0:00:18]} 33. cxd5 {[%emt 0:01:06]} Rxd5 {[%emt 0:00:25]} 34. Ra1 {[%emt 0:00:50]} Rd2+ {[%emt 0:00:30]} 35. Ke3 {[%emt 0:00:29]} Rb2 {[%emt 0:00:31]} 36. Ra7+ {[%emt 0:00:07]} Kf8 {[%emt 0:00:01]} 37. f5 {[%emt 0:01:11]} gxf5 {[%emt 0:00:30]} 38. Nxf5 {[%emt 0:00:19]} Bxf5 {[%emt 0:01:45]} 39. gxf5 {[%emt 0:00:01]} Rb4 {[%emt 0:00:33]} 40. Ra8+ {[%emt 0:01:22]} Ke7 {[%emt 0:00:02]} 41. Kf3 {[%emt 0:05:35]} Nd5 {[%emt 0:02:40]} 42. Rh8 {[%emt 0:06:42]} Rf4+ {[%emt 0:02:58]} 43. Ke2 {[%emt 0:01:10]} Rh4 {[%emt 0:00:27]} 44. Kf2 {[%emt 0:00:32]} Rh5 {[%emt 0:01:22]} 45. Ke1 {[%emt 0:05:37]} Ne3 {[%emt 0:03:39]} 46. Rh7+ {[%emt 0:01:56]} Kd6 {[%emt 0:00:53]} 47. Rb7 {[%emt 0:01:04]} Nd5 {[%emt 0:05:16]} 48. Bg2 {[%emt 0:00:04]} Rxf5 {[%emt 0:01:57]} 49. Bxd5 {[%emt 0:00:01]} Kxd5 {[%emt 0:00:06]} 50. Rxb6 {[%emt 0:00:03]} Rh5 {[%emt 0:00:19]} 51. Rg6 {[%emt 0:01:55]} Rxh3 {[%emt 0:00:03]} 52. b6 {[%emt 0:00:38]} Kc4 {[%emt 0:00:12]} 53. b7 {[%emt 0:00:21]} Rb3 {[%emt 0:00:02]} 54. Rxh6 {[%emt 0:00:05]} Rxb7 {[%emt 0:00:04]} 55. Kd2 {[%emt 0:00:05]} Kb3 {[%emt 0:00:04]} 56. Kc1 {[%emt 0:01:06]} c4 {[%emt 0:00:16]} 57. Rh3+ {[%emt 0:00:04]} c3 {[%emt 0:00:11]} 58. Rh8 {[%emt 0:00:03]} Rb5 {[%emt 0:00:11]} 59. Rg8 {[%emt 0:00:20]} Rb4 {[%emt 0:00:15]} 60. Rc8 {[%emt 0:00:17]} Rh4 {[%emt 0:00:05]} 61. Rb8+ {[%emt 0:00:06]} Rb4 {[%emt 0:00:05]} 62. Rc8 {[%emt 0:00:06]} c2 {[%emt 0:00:08]} 63. Rc3+ {[%emt 0:00:16]} Ka4 {[%emt 0:00:04]} 64. Kxc2 {[%emt 0:00:10]} Kb5 {[%emt 0:00:03]} 65. Rh3 {[%emt 0:00:05]} Rc4+ {[%emt 0:00:07]} 66. Rc3 {[%emt 0:00:06]} Rxc3+ {[%emt 0:00:01]} 67. Kxc3 {[%emt 0:00:05]} 1/2-1/2

[Event "Summer Prague Open A 2020"]
[Site "Prague"]
[Date "2020.08.11"]
[Round "5.3"]
[White "Petr, Martin"]
[Black "Kasioumis, Vasilios"]
[Result "1-0"]
[ECO "B51"]
[WhiteElo "2464"]
[BlackElo "2277"]
[Annotator "ChessBase"]
[PlyCount "67"]
[EventDate "2020.08.08"]
[EventCountry "CZE"]
[SourceTitle "playchess.com"]
[Source "ChessBase"]
[SourceQuality "1"]
[TimeControl "40/5400+30:1800+30"]

1. e4 {[%emt 0:00:00]} c5 {[%emt 0:00:00]} 2. Nf3 {[%emt 0:00:00]} d6 {[%emt 0:00:00]} 3. Bb5+ {[%emt 0:02:03]} Nd7 {[%emt 0:00:00]} 4. c3 {[%emt 0:01:16]} Ngf6 {[%emt 0:01:30]} 5. Qe2 {[%emt 0:00:53]} a6 {[%emt 0:02:04]} 6. Ba4 {[%emt 0:00:07]} b5 {[%emt 0:02:52]} 7. Bc2 {[%emt 0:00:06]} Bb7 {[%emt 0:01:25]} 8. d4 {[%emt 0:06:07]} e5 {[%emt 0:01:21]} 9. O-O {[%emt 0:01:16]} Qc7 {[%emt 0:00:35]} 10. a4 {[%emt 0:04:21]} cxd4 {[%emt 0:16:38]} 11. axb5 {[%emt 0:03:08]} axb5 {[%emt 0:01:48]} 12. Rxa8+ {[%emt 0:00:25]} Bxa8 {[%emt 0:00:04]} 13. Na3 {[%emt 0:14:40]} b4 {[%emt 0:11:32]} 14. Nb5 {[%emt 0:03:06]} Qb8 {[%emt 0:04:03]} 15. Qc4 {[%emt 0:07:11]} Nc5 {[%emt 0:17:34]} 16. cxb4 {[%emt 0:06:23]} d5 {[%emt 0:03:24]} 17. Qa2 {[%emt 0:01:12]} Ne6 {[%emt 0:02:35]} 18. Ba4 {[%emt 0:03:47]} dxe4 {[%emt 0:04:37]} 19. Nbxd4+ {[%emt 0:06:53]} Kd8 {[%emt 0:04:26]} 20. Nxe6+ {[%emt 0:03:10]} fxe6 {[%emt 0:00:05]} 21. Ng5 {[%emt 0:00:04]} Bd5 {[%emt 0:01:06]} 22. Bb3 {[%emt 0:00:16]} Ke8 {[%emt 0:06:00]} 23. Qa4+ {[%emt 0:04:20]} Nd7 {[%emt 0:00:17]} 24. Nxe6 {[%emt 0:00:14]} Bxb3 {[%emt 0:00:28]} 25. Qxb3 {[%emt 0:00:06]} Qxb4 {[%emt 0:00:52]} 26. Nxg7+ {[%emt 0:02:53]} Kd8 {[%emt 0:00:05]} 27. Ne6+ {[%emt 0:01:07]} Ke8 {[%emt 0:00:05]} 28. Qd5 {[%emt 0:07:01]} Qd6 {[%emt 0:01:40]} 29. Ng7+ {[%emt 0:00:39]} Kd8 {[%emt 0:00:04]} 30. Bg5+ {[%emt 0:00:06]} Kc8 {[%emt 0:00:37]} 31. Rc1+ {[%emt 0:00:04]} Kb8 {[%emt 0:00:11]} 32. Qb5+ {[%emt 0:00:06]} Nb6 {[%emt 0:00:22]} 33. Be3 {[%emt 0:01:11]} Kb7 {[%emt 0:00:27]} 34. Ne8 {[%emt 0:01:15]} 1-0

[Event "Summer Prague Open A 2020"]
[Site "Prague"]
[Date "2020.08.11"]
[Round "5.4"]
[White "Vokac, Marek"]
[Black "Cernousek, Lukas"]
[Result "1/2-1/2"]
[ECO "A13"]
[WhiteElo "2362"]
[BlackElo "2458"]
[Annotator "ChessBase"]
[PlyCount "81"]
[EventDate "2020.08.08"]
[EventCountry "CZE"]
[SourceTitle "playchess.com"]
[Source "ChessBase"]
[SourceQuality "1"]
[TimeControl "40/5400+30:1800+30"]

1. c4 {[%emt 0:00:00]} e6 {[%emt 0:00:00]} 2. Nf3 {[%emt 0:00:27]} d5 {[%emt 0:00:00]} 3. b3 {[%emt 0:01:22]} d4 {[%emt 0:00:00]} 4. e3 {[%emt 0:00:15]} c5 {[%emt 0:00:00]} 5. exd4 {[%emt 0:02:32]} cxd4 {[%emt 0:00:06]} 6. g3 {[%emt 0:00:13]} Nc6 {[%emt 0:00:30]} 7. Bg2 {[%emt 0:00:03]} Nf6 {[%emt 0:01:26]} 8. O-O {[%emt 0:00:17]} Bd6 {[%emt 0:02:08]} 9. d3 {[%emt 0:00:05]} O-O {[%emt 0:03:16]} 10. a3 {[%emt 0:03:23]} a5 {[%emt 0:01:30]} 11. Bg5 {[%emt 0:02:23]} h6 {[%emt 0:00:09]} 12. Bxf6 {[%emt 0:00:05]} Qxf6 {[%emt 0:00:06]} 13. Nbd2 {[%emt 0:00:08]} Qe7 {[%emt 0:00:36]} 14. Qc1 {[%emt 0:00:45]} f5 {[%emt 0:16:16]} 15. Re1 {[%emt 0:04:52]} Bd7 {[%emt 0:01:44]} 16. Qb2 {[%emt 0:22:26]} Rad8 {[%emt 0:29:08]} 17. Re2 {[%emt 0:10:04]} e5 {[%emt 0:09:30]} 18. Rae1 {[%emt 0:13:45]} Bxa3 {[%emt 0:10:58]} 19. Qa2 {[%emt 0:00:01]} e4 {[%emt 0:02:13]} 20. dxe4 {[%emt 0:05:02]} d3 {[%emt 0:05:03]} 21. Re3 {[%emt 0:00:03]} Bc5 {[%emt 0:00:10]} 22. exf5 {[%emt 0:02:29]} Bxe3 {[%emt 0:00:07]} 23. Rxe3 {[%emt 0:00:06]} Qb4 {[%emt 0:08:11]} 24. g4 {[%emt 0:05:49]} Qc3 {[%emt 0:01:26]} 25. Bf1 {[%emt 0:06:27]} a4 {[%emt 0:06:39]} 26. Rxd3 {[%emt 0:09:09]} Nb4 {[%emt 0:00:29]} 27. Rxc3 {[%emt 0:00:02]} Nxa2 {[%emt 0:00:11]} 28. Re3 {[%emt 0:00:04]} a3 {[%emt 0:00:38]} 29. Nb1 {[%emt 0:01:15]} Ra8 {[%emt 0:00:15]} 30. Ne5 {[%emt 0:03:48]} Bc6 {[%emt 0:01:06]} 31. b4 {[%emt 0:00:54]} Nxb4 {[%emt 0:00:16]} 32. Nxa3 {[%emt 0:00:12]} Rfd8 {[%emt 0:00:51]} 33. Rb3 {[%emt 0:06:03]} Ra4 {[%emt 0:00:59]} 34. Nb5 {[%emt 0:01:53]} Nc2 {[%emt 0:00:12]} 35. Rb2 {[%emt 0:00:31]} Rd2 {[%emt 0:00:47]} 36. Nc3 {[%emt 0:00:33]} Rb4 {[%emt 0:00:31]} 37. Rxb4 {[%emt 0:00:11]} Nxb4 {[%emt 0:00:04]} 38. Nxc6 {[%emt 0:00:20]} bxc6 {[%emt 0:00:15]} 39. Ne4 {[%emt 0:00:12]} Rd4 {[%emt 0:00:58]} 40. f3 {[%emt 0:00:05]} Nd3 {[%emt 0:00:43]} 41. Bxd3 {[%emt 0:31:07]} 1/2-1/2

[Event "Summer Prague Open A 2020"]
[Site "Prague"]
[Date "2020.08.11"]
[Round "5.5"]
[White "Mladek, Richard"]
[Black "Neuman, Petr"]
[Result "1/2-1/2"]
[ECO "B53"]
[WhiteElo "2280"]
[BlackElo "2376"]
[Annotator "ChessBase"]
[PlyCount "90"]
[EventDate "2020.08.08"]
[EventCountry "CZE"]
[SourceTitle "playchess.com"]
[Source "ChessBase"]
[SourceQuality "1"]
[TimeControl "40/5400+30:1800+30"]

1. e4 {[%emt 0:00:00]} c5 {[%emt 0:06:53]} 2. Nf3 {[%emt 0:00:00]} d6 {[%emt 0:00:05]} 3. d4 {[%emt 0:00:57]} cxd4 {[%emt 0:00:06]} 4. Qxd4 {[%emt 0:00:05]} a6 {[%emt 0:01:00]} 5. Be3 {[%emt 0:00:58]} Nc6 {[%emt 0:00:17]} 6. Qd2 {[%emt 0:01:53]} Nf6 {[%emt 0:01:58]} 7. Nc3 {[%emt 0:00:02]} b5 {[%emt 0:00:13]} 8. Bd3 {[%emt 0:05:33]} e6 {[%emt 0:03:31]} 9. O-O-O {[%emt 0:01:10]} Bb7 {[%emt 0:01:46]} 10. Rhg1 {[%emt 0:01:03]} Rc8 {[%emt 0:14:30]} 11. g4 {[%emt 0:00:55]} Nd7 {[%emt 0:07:23]} 12. Kb1 {[%emt 0:00:55]} Qa5 {[%emt 0:04:27]} 13. Nd4 {[%emt 0:01:09]} Nde5 {[%emt 0:06:47]} 14. Nb3 {[%emt 0:05:14]} Qc7 {[%emt 0:04:48]} 15. Rg3 {[%emt 0:02:09]} h5 {[%emt 0:09:49]} 16. gxh5 {[%emt 0:01:28]} Rxh5 {[%emt 0:00:37]} 17. f4 {[%emt 0:00:23]} Nxd3 {[%emt 0:06:10]} 18. cxd3 {[%emt 0:00:02]} Qe7 {[%emt 0:03:40]} 19. Qe2 {[%emt 0:06:25]} Qh4 {[%emt 0:00:42]} 20. Bg1 {[%emt 0:00:24]} g6 {[%emt 0:01:40]} 21. Rg4 {[%emt 0:05:10]} Qd8 {[%emt 0:03:16]} 22. Rf1 {[%emt 0:02:21]} Ne7 {[%emt 0:02:03]} 23. Bd4 {[%emt 0:03:19]} Qd7 {[%emt 0:02:31]} 24. a3 {[%emt 0:01:36]} Rh3 {[%emt 0:07:44]} 25. Rg3 {[%emt 0:10:36]} Rxg3 {[%emt 0:04:01]} 26. hxg3 {[%emt 0:00:01]} Nc6 {[%emt 0:00:04]} 27. Be3 {[%emt 0:12:09]} b4 {[%emt 0:00:11]} 28. axb4 {[%emt 0:01:49]} Nxb4 {[%emt 0:00:06]} 29. Rh1 {[%emt 0:00:33]} Bg7 {[%emt 0:02:45]} 30. Bd2 {[%emt 0:03:34]} a5 {[%emt 0:01:29]} 31. Rh7 {[%emt 0:02:35]} Ba6 {[%emt 0:00:06]} 32. Nc1 {[%emt 0:00:30]} Kf8 {[%emt 0:00:03]} 33. f5 {[%emt 0:01:54]} exf5 {[%emt 0:00:39]} 34. Bh6 {[%emt 0:03:21]} Bxh6 {[%emt 0:00:16]} 35. Rxh6 {[%emt 0:00:13]} Qe6 {[%emt 0:02:40]} 36. Qh2 {[%emt 0:03:06]} Ke7 {[%emt 0:00:01]} 37. Rh7 {[%emt 0:03:39]} Kd7 {[%emt 0:01:41]} 38. Qf2 {[%emt 0:00:24]} Bxd3+ {[%emt 0:01:53]} 39. Nxd3 {[%emt 0:00:38]} Nxd3 {[%emt 0:00:01]} 40. Qb6 {[%emt 0:03:15]} fxe4 {[%emt 0:01:23]} 41. Qb7+ {[%emt 0:30:52]} Rc7 {[%emt 0:03:57]} 42. Qb5+ {[%emt 0:00:00]} Ke7 {[%emt 0:00:52]} 43. Qg5+ {[%emt 0:00:00]} Kd7 {[%emt 0:00:27]} 44. Qb5+ {[%emt 0:00:00]} Ke7 {[%emt 0:00:06]} 45. Qg5+ {[%emt 0:00:00]} Kd7 {[%emt 0:00:11]} 1/2-1/2

[Event "Summer Prague Open A 2020"]
[Site "Prague"]
[Date "2020.08.11"]
[Round "5.6"]
[White "Schnider, Gert"]
[Black "Soural, Jan"]
[Result "1/2-1/2"]
[ECO "A16"]
[WhiteElo "2423"]
[BlackElo "2234"]
[Annotator "ChessBase"]
[PlyCount "55"]
[EventDate "2020.08.08"]
[EventCountry "CZE"]
[SourceTitle "playchess.com"]
[Source "ChessBase"]
[SourceQuality "1"]
[TimeControl "40/5400+30:1800+30"]

1. c4 {[%emt 0:00:00]} Nf6 {[%emt 0:00:02]} 2. Nc3 {[%emt 0:00:00]} d5 {[%emt 0:03:17]} 3. cxd5 {[%emt 0:00:00]} Nxd5 {[%emt 0:00:15]} 4. g3 {[%emt 0:01:04]} g6 {[%emt 0:05:56]} 5. Bg2 {[%emt 0:00:08]} Nb6 {[%emt 0:00:23]} 6. Nf3 {[%emt 0:00:28]} Bg7 {[%emt 0:00:10]} 7. O-O {[%emt 0:04:28]} Nc6 {[%emt 0:08:13]} 8. d3 {[%emt 0:00:36]} O-O {[%emt 0:00:15]} 9. Be3 {[%emt 0:01:54]} e5 {[%emt 0:13:55]} 10. Rc1 {[%emt 0:03:20]} Nd4 {[%emt 0:01:36]} 11. Qd2 {[%emt 0:08:17]} c6 {[%emt 0:09:49]} 12. Bg5 {[%emt 0:02:51]} f6 {[%emt 0:03:10]} 13. Bh6 {[%emt 0:02:08]} Bxh6 {[%emt 0:08:00]} 14. Qxh6 {[%emt 0:00:01]} Bg4 {[%emt 0:00:12]} 15. Qe3 {[%emt 0:07:17]} Re8 {[%emt 0:10:28]} 16. Rfe1 {[%emt 0:06:28]} Kg7 {[%emt 0:01:34]} 17. Nd2 {[%emt 0:04:28]} Qe7 {[%emt 0:04:40]} 18. h3 {[%emt 0:13:54]} Bd7 {[%emt 0:00:43]} 19. Nf3 {[%emt 0:00:40]} Qb4 {[%emt 0:07:23]} 20. b3 {[%emt 0:05:40]} Rad8 {[%emt 0:02:21]} 21. Kh2 {[%emt 0:02:49]} a5 {[%emt 0:07:41]} 22. Ne4 {[%emt 0:01:56]} Bf5 {[%emt 0:03:16]} 23. Nc3 {[%emt 0:03:52]} Bc8 {[%emt 0:01:49]} 24. Red1 {[%emt 0:08:29]} Nf5 {[%emt 0:01:54]} 25. Qe4 {[%emt 0:01:34]} Nd4 {[%emt 0:00:18]} 26. Qe3 {[%emt 0:00:42]} Nf5 {[%emt 0:00:16]} 27. Qe4 {[%emt 0:00:18]} Nd4 {[%emt 0:00:12]} 28. Qe3 {[%emt 0:01:43]} 1/2-1/2